bitfinex/quotes_BTCUSD_20250408
["timestamp","ask_amount","ask_price","bid_price","bid_amount"]
[1744089423386,0.16278628,79807.0,79806.0,0.0001284]
[1744089423776,0.16278628,79807.0,79806.0,4e-07]
[1744089423777,0.22296658,79807.0,79806.0,4e-07]
[1744089423998,0.22296149,79807.0,79806.0,4e-07]
[1744089424198,0.98076149,79807.0,79806.0,4e-07]
[1744089424466,1.04030234,79807.0,79806.0,4e-07]
[1744089424678,0.263236,79776.0,79775.0,0.0916685]
[1744089424833,0.012534,79782.0,79775.0,0.3423725]
[1744089425036,0.26324,79775.0,79774.0,0.0001682]
[1744089425440,0.27250951,79775.0,79774.0,0.0001682]
[1744089425644,0.45642848,79775.0,79774.0,0.0001682]
[1744089426103,0.45655335,79775.0,79774.0,0.0001682]
[1744089426488,0.31139335,79775.0,79774.0,0.0001682]
[1744089426643,0.46055335,79775.0,79774.0,0.0001682]
[1744089426838,0.45655335,79775.0,79774.0,0.0001682]
[1744089427046,0.02698736,79775.0,79774.0,0.0001682]
[1744089427249,0.02698736,79775.0,79774.0,0.02651052]
[1744089427448,0.01771785,79775.0,79774.0,0.0001682]
[1744089427968,0.01865987,79775.0,79774.0,0.0001682]
[1744089428580,0.01265987,79775.0,79774.0,0.0001682]
[1744089428988,0.01665987,79775.0,79774.0,0.0001682]
[1744089430755,0.00412487,79775.0,79774.0,0.0001682]
[1744089430950,0.012535,79773.0,79768.0,0.09186114]
[1744089431154,0.263249,79772.0,79768.0,0.09186114]
[1744089431774,0.263249,79772.0,79768.0,0.15495645]
[1744089432231,0.012535,79773.0,79768.0,0.15595645]
[1744089432636,0.003,79772.0,79768.0,0.15495645]
[1744089432878,0.253715,79772.0,79768.0,0.09186114]
[1744089433205,0.253715,79772.0,79768.0,0.09286114]
[1744089433360,0.26625,79772.0,79768.0,0.09286114]
[1744089433560,0.263258,79770.0,79768.0,0.001]
[1744089433733,0.012536,79769.0,79768.0,0.001]
[1744089433933,0.01395952,79769.0,79768.0,0.001]
[1744089434170,0.012535,79773.0,79768.0,0.001]
[1744089434369,0.012535,79776.0,79768.0,0.001]
[1744089434568,0.012535,79776.0,79765.0,0.012536]
[1744089434773,0.012535,79776.0,79768.0,0.002]
[1744089434974,0.012535,79773.0,79768.0,0.002]
[1744089435131,0.263259,79769.0,79768.0,0.002]
[1744089435333,0.012536,79764.0,79760.0,0.0478]
[1744089435532,0.250733,79766.0,79760.0,0.0478]
[1744089436057,0.263269,79766.0,79760.0,0.0478]
[1744089436255,0.012536,79766.0,79760.0,0.0478]
[1744089436455,0.263271,79766.0,79760.0,0.0478]
[1744089436655,0.012536,79767.0,79760.0,0.3878]
[1744089436864,0.263266,79767.0,79760.0,0.3878]
[1744089437195,0.012536,79766.0,79760.0,0.3878]
[1744089437358,0.263272,79765.0,79760.0,0.3878]
[1744089437555,0.001,79764.0,79761.0,0.0484]
[1744089437993,0.263272,79765.0,79761.0,0.0464]
[1744089438421,0.263272,79765.0,79761.0,0.0484]
[1744089438807,0.263272,79765.0,79761.0,0.0464]
[1744089439350,0.264272,79765.0,79761.0,0.0484]
[1744089439473,0.263278,79764.0,79761.0,0.0484]
[1744089440056,0.264272,79765.0,79762.0,0.04362]
[1744089440529,0.263278,79764.0,79761.0,0.0464]
[1744089440733,0.263282,79762.0,79761.0,0.0464]
[1744089440909,0.264278,79764.0,79761.0,0.0484]
[1744089441593,0.263278,79764.0,79761.0,0.0464]
[1744089441797,0.001,79762.0,79761.0,0.0484]
[1744089442938,0.012536,79764.0,79761.0,0.0464]
[1744089443758,0.263282,79762.0,79761.0,0.0464]
[1744089444253,0.250739,79765.0,79761.0,0.0464]
[1744089444456,0.250739,79765.0,79761.0,0.0484]
[1744089444457,0.250745,79762.0,79761.0,0.0484]
[1744089444661,0.012537,79762.0,79761.0,0.0484]
[1744089444864,0.08989911,79764.0,79761.0,0.09002]
[1744089445226,0.001,79762.0,79761.0,0.09202]
[1744089445621,0.02409078,79763.0,79761.0,0.09002]
[1744089446025,0.02409078,79763.0,79761.0,0.09202]
[1744089446489,0.27483578,79762.0,79761.0,0.002]
[1744089446668,0.01155378,79762.0,79761.0,0.002]
[1744089447290,0.01155378,79762.0,79757.0,0.34]
[1744089447733,0.01155378,79762.0,79761.0,0.002]
[1744089448181,0.01155378,79762.0,79756.0,0.34]
[1744089448392,0.01155378,79762.0,79757.0,0.2987124]
[1744089448595,0.01255378,79762.0,79757.0,0.4426391]
[1744089448770,0.03572087,79762.0,79757.0,0.4426391]
[1744089448969,0.03472087,79762.0,79757.0,0.4406391]
[1744089449134,0.01155378,79761.0,79757.0,0.4406391]
[1744089449472,0.02316709,79760.0,79758.0,0.29278054]
[1744089450278,0.03472087,79759.0,79758.0,0.29278054]
[1744089451786,0.044006,79759.0,79758.0,0.29278054]
[1744089452292,0.045006,79759.0,79758.0,0.29478054]
[1744089453390,0.045006,79759.0,79758.0,0.03148854]
[1744089453624,0.045006,79759.0,79758.0,0.002]
[1744089457102,0.02183891,79759.0,79758.0,0.002]
[1744089457817,0.04510112,79759.0,79758.0,0.002]
[1744089458474,0.04510112,79759.0,79758.0,0.014537]
[1744089458896,0.04510112,79759.0,79758.0,0.14643309]
[1744089459419,0.04510112,79759.0,79758.0,0.1439257]
[1744089459780,0.02183891,79759.0,79758.0,0.1439257]
[1744089460806,0.02183891,79759.0,79758.0,0.1313887]
[1744089461210,0.04510496,79759.0,79758.0,0.1439257]
[1744089462253,0.04510496,79759.0,79758.0,0.1313887]
[1744089462674,0.04510496,79759.0,79758.0,0.1439257]
[1744089463894,0.04510496,79759.0,79758.0,0.5009738]
[1744089464157,0.02183891,79759.0,79758.0,0.59286655]
[1744089464289,0.01255378,79759.0,79758.0,0.59286655]
[1744089464682,0.001,79759.0,79758.0,0.5783257]
[1744089464877,0.001,79759.0,79758.0,0.9927257]
[1744089465082,0.001,79759.0,79758.0,1.00726655]
[1744089467467,0.00917465,79771.0,79770.0,0.012536]
[1744089467673,0.00917465,79771.0,79770.0,0.14443161]
[1744089467850,0.00012487,79775.0,79771.0,0.012535]
[1744089468051,0.00012487,79775.0,79774.0,0.357643]
[1744089468267,0.00012487,79775.0,79774.0,0.8270317]
[1744089469049,0.00012487,79775.0,79774.0,1.2414317]
[1744089469287,0.00012487,79775.0,79774.0,1.25597255]
[1744089469716,0.00112487,79775.0,79774.0,1.2414317]
[1744089470980,0.00112487,79775.0,79774.0,1.2444317]
[1744089476254,0.00112487,79775.0,79774.0,1.2414317]
[1744089476578,0.00012487,79775.0,79774.0,1.2444317]
[1744089480910,0.00012487,79775.0,79774.0,0.9937237]
[1744089481291,0.00012487,79775.0,79774.0,0.8993237]
[1744089481918,0.01265987,79775.0,79774.0,0.5467887]
[1744089482240,0.01265987,79775.0,79774.0,0.4174]
[1744089482898,0.02194473,79775.0,79774.0,0.4174]
[1744089483112,0.0335505,79775.0,79774.0,0.4174]
[1744089484039,0.0210155,79775.0,79774.0,0.4174]
[1744089484340,0.01173064,79775.0,79774.0,0.4174]
[1744089484997,0.01173064,79775.0,79774.0,0.5593237]
[1744089485197,0.00012487,79775.0,79774.0,0.5467887]
[1744089485607,0.01265987,79775.0,79774.0,0.5467887]
[1744089485824,0.01265987,79775.0,79774.0,0.4174]
[1744089486390,0.02194473,79775.0,79774.0,0.4174]
[1744089487309,0.03355295,79775.0,79774.0,0.4174]
[1744089491134,0.03355295,79775.0,79774.0,0.003]
[1744089492413,0.012535,79773.0,79767.0,0.00250705]
[1744089492676,0.263252,79772.0,79767.0,0.1293887]
[1744089492836,0.27486022,79772.0,79767.0,0.1293887]
[1744089493042,0.00928486,79771.0,79767.0,0.1293887]
[1744089493563,0.263249,79773.0,79767.0,0.3926517]
[1744089493564,0.00928486,79770.0,79767.0,0.3926517]
[1744089493843,0.00928486,79770.0,79767.0,0.3956517]
[1744089494043,0.26436587,79775.0,79769.0,0.250723]
[1744089494249,0.263245,79774.0,79768.0,0.1293887]
[1744089494401,0.263249,79773.0,79768.0,0.1293887]
[1744089494618,0.00929096,79772.0,79770.0,0.012536]
[1744089495138,0.00929096,79772.0,79769.0,0.250723]
[1744089495139,0.00929096,79772.0,79769.0,0.263259]
[1744089495549,0.00929096,79771.0,79769.0,0.263259]
[1744089496107,0.00929096,79770.0,79769.0,0.263259]
[1744089496510,0.00929096,79770.0,79769.0,0.267259]
[1744089496707,0.00929096,79770.0,79769.0,0.1333887]
[1744089497857,0.00929096,79770.0,79769.0,0.1343887]
[1744089498031,0.00929096,79770.0,79769.0,0.1293887]
[1744089498196,0.250723,79769.0,79766.0,0.00954204]
[1744089498409,0.00929096,79768.0,79766.0,0.1293887]
[1744089498623,0.00929096,79768.0,79767.0,0.1293887]
[1744089498824,0.250721,79770.0,79767.0,0.1293887]
[1744089499025,0.00929107,79769.0,79767.0,0.1293887]
[1744089499699,0.00929107,79768.0,79767.0,0.1293887]
[1744089500092,0.26001807,79768.0,79767.0,0.1293887]
[1744089500294,0.00929107,79768.0,79767.0,0.1293887]
[1744089500555,0.02090489,79768.0,79767.0,0.1293887]
[1744089501318,0.02090489,79768.0,79767.0,0.1303887]
[1744089501787,0.02090489,79768.0,79767.0,0.1343887]
[1744089502305,0.27163189,79768.0,79767.0,0.1293887]
[1744089502491,0.02090489,79768.0,79767.0,0.1353887]
[1744089502893,0.02090489,79768.0,79767.0,0.1373887]
[1744089504347,0.03344089,79768.0,79767.0,0.008]
[1744089504688,0.18192089,79768.0,79767.0,0.008]
[1744089504890,0.18192089,79768.0,79751.0,0.004]
[1744089504891,0.310315,79752.0,79751.0,0.004]
[1744089505063,0.504815,79752.0,79751.0,0.004]
[1744089505297,0.51642882,79752.0,79751.0,0.004]
[1744089505445,0.52571989,79752.0,79751.0,0.004]
[1744089506228,0.52871989,79752.0,79751.0,0.004]
[1744089506455,0.55189863,79752.0,79751.0,0.004]
[1744089506827,0.7873025,79752.0,79751.0,1e-06]
[1744089507302,0.68128733,79752.0,79751.0,1e-06]
[1744089507482,0.53388733,79752.0,79751.0,1e-06]
[1744089507813,0.68132733,79752.0,79751.0,1e-06]
[1744089507989,0.67832733,79752.0,79751.0,1e-06]
[1744089508183,0.65514859,79752.0,79751.0,1e-06]
[1744089508403,0.79455404,79752.0,79751.0,1e-06]
[1744089508616,0.78855404,79752.0,79751.0,1e-06]
[1744089508937,0.65514859,79752.0,79751.0,1e-06]
[1744089509162,0.66114859,79752.0,79751.0,1e-06]
[1744089509571,0.66314859,79752.0,79751.0,1e-06]
[1744089509886,0.67014859,79752.0,79751.0,1e-06]
[1744089511115,0.67914859,79752.0,79751.0,1e-06]
[1744089512634,0.66753477,79752.0,79751.0,1e-06]
[1744089514639,0.39070607,79752.0,79751.0,1e-06]
[1744089514864,0.024,79752.0,79751.0,1e-06]
[1744089515048,0.036538,79752.0,79751.0,1e-06]
[1744089516047,0.019538,79752.0,79751.0,1e-06]
[1744089516219,0.012538,79752.0,79751.0,1e-06]
[1744089516425,0.019538,79752.0,79751.0,1e-06]
[1744089517029,0.023538,79752.0,79751.0,1e-06]
[1744089519373,0.274315,79752.0,79751.0,1e-06]
[1744089525323,0.28357114,79752.0,79751.0,1e-06]
[1744089525935,0.41295984,79752.0,79751.0,1e-06]
[1744089526665,0.49385012,79752.0,79751.0,1e-06]
[1744089527073,0.50542186,79752.0,79751.0,1e-06]
[1744089527615,0.50142186,79752.0,79751.0,1e-06]
[1744089527811,0.353738,79745.0,79744.0,1e-07]
[1744089528016,0.012541,79736.0,79719.0,0.0001683]
[1744089528275,0.250856,79727.0,79726.0,1.2e-07]
[1744089528452,0.263414,79722.0,79721.0,0.00396012]
[1744089528837,0.263414,79722.0,79721.0,0.14589182]
[1744089528838,0.00925614,79722.0,79721.0,0.14589182]
[1744089529034,0.00925614,79722.0,79721.0,0.19409182]
[1744089529438,0.0116965,79727.0,79721.0,0.19409182]
[1744089529628,0.00012476,79727.0,79723.0,0.012543]
[1744089529866,0.00012476,79727.0,79723.0,0.1419317]
[1744089530507,0.00012476,79727.0,79723.0,0.1293887]
[1744089530681,0.00012476,79727.0,79722.0,0.012543]
[1744089530897,0.26352276,79727.0,79721.0,0.05216012]
[1744089531275,0.012543,79722.0,79721.0,0.00496012]
[1744089531863,0.03338696,79722.0,79721.0,0.00496012]
[1744089532267,0.03338696,79722.0,79721.0,0.00396012]
[1744089532517,0.03338696,79722.0,79721.0,0.00596012]
[1744089532850,0.03438696,79722.0,79721.0,0.00596012]
[1744089533415,0.02184396,79722.0,79721.0,0.13534882]
[1744089533734,0.02184396,79722.0,79721.0,0.19459182]
[1744089533941,0.02084396,79722.0,79721.0,0.19459182]
[1744089534155,0.01257998,79722.0,79721.0,0.19259182]
[1744089534347,0.001,79722.0,79721.0,0.19259182]
[1744089534716,0.002,79722.0,79721.0,0.19259182]
[1744089534922,0.014543,79722.0,79721.0,0.05066012]
[1744089535156,0.002,79722.0,79721.0,0.05066012]
[1744089535464,0.002,79722.0,79721.0,0.05266012]
[1744089535671,0.250864,79725.0,79721.0,0.00596012]
[1744089535965,0.250864,79725.0,79721.0,0.00396012]
[1744089535966,0.012543,79725.0,79721.0,0.00396012]
[1744089536122,0.012543,79725.0,79721.0,0.00696012]
[1744089537499,0.012543,79722.0,79721.0,0.00396012]
[1744089537725,0.012543,79722.0,79721.0,0.00596012]
[1744089537859,0.02180636,79722.0,79721.0,0.00596012]
[1744089538364,0.02180636,79722.0,79721.0,0.00396012]
[1744089538982,0.02180636,79722.0,79721.0,0.00696012]
[1744089539189,0.02180636,79722.0,79721.0,0.00396012]
[1744089539413,0.02680636,79722.0,79721.0,0.00396012]
[1744089539930,0.07660636,79722.0,79721.0,0.00396012]
[1744089540480,0.07860636,79722.0,79721.0,0.00396012]
[1744089541036,0.07160636,79722.0,79721.0,0.00396012]
[1744089541366,0.03080636,79722.0,79721.0,0.00396012]
[1744089545668,0.021543,79722.0,79721.0,0.00396012]
[1744089546073,0.250865,79724.0,79721.0,0.00396012]
[1744089546508,0.250868,79723.0,79721.0,0.00396012]
[1744089546726,0.062343,79722.0,79721.0,0.00396012]
[1744089546911,0.1917317,79722.0,79721.0,0.00396012]
[1744089547632,0.012543,79722.0,79721.0,0.00396012]
[1744089547989,0.021543,79722.0,79721.0,0.00396012]
[1744089552174,0.009,79722.0,79721.0,0.00396012]
[1744089552379,0.021543,79722.0,79721.0,0.00396012]
[1744089553147,0.021543,79722.0,79721.0,0.05246012]
[1744089555540,0.021543,79722.0,79721.0,0.45554673]
[1744089555541,0.009,79722.0,79721.0,0.45554673]
[1744089556138,0.009,79722.0,79721.0,0.79554673]
[1744089557358,0.009,79722.0,79721.0,1.27338758]
[1744089558136,0.009,79722.0,79721.0,1.28260497]
[1744089559019,0.007,79724.0,79723.0,0.603411]
[1744089559220,0.007,79724.0,79723.0,0.8301997]
[1744089559657,0.007,79724.0,79723.0,0.84474055]
[1744089560252,0.008,79724.0,79723.0,0.85074055]
[1744089560453,0.001,79724.0,79723.0,0.85074055]
[1744089560629,0.012539,79745.0,79737.0,0.250823]
[1744089560835,0.012539,79745.0,79738.0,0.1293887]
[1744089561036,0.012541,79737.0,79733.0,0.4144]
[1744089561382,0.012541,79734.0,79733.0,0.4144]
[1744089562820,0.263375,79734.0,79733.0,0.4144]
[1744089563462,0.263375,79734.0,79733.0,0.4164]
[1744089564333,0.012541,79737.0,79733.0,0.4164]
[1744089564532,0.012541,79737.0,79733.0,0.002]
[1744089564673,0.263368,79737.0,79733.0,0.002]
[1744089564870,0.012541,79737.0,79733.0,0.002]
[1744089565320,0.250821,79738.0,79734.0,0.1293887]
[1744089565474,0.263362,79738.0,79735.0,0.06436137]
[1744089565673,0.263362,79738.0,79736.0,0.1293887]
[1744089565874,0.01254,79743.0,79737.0,0.344924]
[1744089566075,0.250808,79742.0,79738.0,0.1293887]
[1744089566518,0.250802,79744.0,79739.0,0.250818]
[1744089566701,0.250793,79747.0,79740.0,0.1293887]
[1744089567218,0.012539,79745.0,79740.0,0.1293887]
[1744089567398,0.01254,79742.0,79740.0,0.1293887]
[1744089568034,0.01354,79742.0,79740.0,0.1293887]
[1744089568657,0.264349,79742.0,79740.0,0.1293887]
[1744089569019,0.264349,79742.0,79734.0,0.34]
[1744089569020,0.01254,79741.0,79734.0,0.34]
[1744089569217,0.01254,79741.0,79740.0,0.001]
[1744089569626,0.263355,79740.0,79735.0,0.1293887]
[1744089570071,0.263361,79739.0,79735.0,0.1293887]
[1744089570406,0.263346,79743.0,79735.0,0.1293887]
[1744089570407,0.012539,79750.0,79743.0,0.01254]
[1744089570713,0.263352,79741.0,79740.0,0.002]
[1744089570846,0.263352,79741.0,79739.0,0.34]
[1744089571254,0.263342,79744.0,79739.0,0.34]
[1744089571725,0.250787,79749.0,79741.0,0.01254]
[1744089571928,0.012538,79756.0,79749.0,0.012539]
[1744089572133,0.263311,79754.0,79750.0,0.1293887]
[1744089572429,0.0128732,79759.0,79752.0,0.250777]
[1744089572634,0.012537,79758.0,79751.0,0.046]
[1744089572837,0.012538,79755.0,79751.0,0.046]
[1744089573233,0.0126644,79755.0,79751.0,0.046]
[1744089573682,0.0001264,79755.0,79753.0,0.263309]
[1744089573883,0.0001264,79755.0,79754.0,0.14443415]
[1744089574087,0.0051264,79755.0,79754.0,0.14443415]
[1744089574299,0.0051264,79755.0,79754.0,0.14443406]
[1744089574477,0.0061264,79755.0,79754.0,0.14443406]
[1744089574673,0.0091264,79755.0,79754.0,0.1419267]
[1744089574879,0.0011264,79755.0,79754.0,0.1419267]
[1744089575096,0.0011264,79755.0,79754.0,0.21936664]
[1744089575297,0.0011264,79755.0,79754.0,0.1419267]
[1744089575720,0.0001264,79755.0,79754.0,0.1419267]
[1744089575912,0.0001264,79755.0,79754.0,0.49646755]
[1744089576110,0.0011264,79755.0,79754.0,0.54456755]
[1744089576512,0.0041264,79755.0,79754.0,0.54456755]
[1744089576693,0.0001264,79755.0,79754.0,0.54456755]
[1744089577119,0.0021264,79755.0,79754.0,0.54556755]
[1744089577967,0.0021264,79755.0,79754.0,0.7692597]
[1744089578105,0.0021264,79755.0,79754.0,0.7817977]
[1744089578867,0.0021264,79755.0,79754.0,0.5174887]
[1744089579021,0.0021264,79755.0,79754.0,0.1774887]
[1744089579022,0.0146644,79755.0,79754.0,0.1774887]
[1744089580030,0.0021264,79755.0,79754.0,0.1774887]
[1744089580249,0.0021264,79755.0,79754.0,0.1794887]
[1744089581127,0.0021264,79755.0,79754.0,0.002]
[1744089581331,0.0146644,79755.0,79754.0,0.002]
[1744089583361,0.250761,79757.0,79731.0,0.399942]
[1744089583574,0.250825,79737.0,79733.0,0.34]
[1744089583779,0.263364,79738.0,79735.0,0.34]
[1744089583978,0.012541,79738.0,79736.0,0.1293887]
[1744089584217,0.263357,79740.0,79736.0,0.1293887]
[1744089584803,0.250822,79738.0,79736.0,0.1293887]
[1744089585002,0.01254,79739.0,79736.0,0.1293887]
[1744089585399,0.001,79740.0,79736.0,0.1343887]
[1744089585855,0.001,79740.0,79736.0,0.1469297]
[1744089586200,0.001,79740.0,79736.0,0.1509297]
[1744089586404,0.001,79740.0,79736.0,0.1469297]
[1744089586944,0.001,79740.0,79737.0,0.012541]
[1744089587102,0.001,79740.0,79738.0,0.1419297]
[1744089587302,0.263345,79744.0,79738.0,0.1419297]
[1744089587602,0.001,79739.0,79738.0,0.1419297]
[1744089588008,0.263345,79744.0,79738.0,0.1419297]
[1744089588423,0.012539,79746.0,79739.0,0.01254]
[1744089588597,0.250777,79752.0,79745.0,0.263335]
[1744089588796,0.263309,79754.0,79746.0,0.0474]
[1744089589009,0.263315,79753.0,79746.0,0.310735]
[1744089589207,0.2636282,79759.0,79750.0,0.26332]
[1744089589416,0.012537,79758.0,79752.0,0.012538]
[1744089589655,0.263306,79755.0,79750.0,0.1293887]
[1744089589855,0.012538,79755.0,79750.0,0.1419277]
[1744089590194,0.263309,79755.0,79750.0,0.1293887]
[1744089590400,0.012538,79755.0,79750.0,0.1293887]
[1744089590604,0.263308,79755.0,79750.0,0.1293887]
[1744089590763,0.012538,79754.0,79750.0,0.1293887]
[1744089591537,0.269308,79755.0,79751.0,0.250777]
[1744089591538,0.006,79755.0,79751.0,0.250777]
[1744089591740,0.004,79755.0,79751.0,0.250777]
[1744089592171,0.002,79754.0,79751.0,0.250777]
[1744089592580,0.002,79754.0,79751.0,0.263316]
[1744089592983,0.006,79754.0,79752.0,0.263312]
[1744089593185,0.006,79754.0,79753.0,0.1293887]
[1744089593587,0.004,79754.0,79753.0,0.1293887]
[1744089593797,0.012538,79754.0,79753.0,0.1293887]
[1744089594572,0.012538,79754.0,79753.0,0.1313887]
[1744089595279,0.263308,79755.0,79753.0,0.1313887]
[1744089595476,0.263306,79755.0,79753.0,0.1313887]
[1744089596837,0.263306,79755.0,79753.0,0.1293887]
[1744089596995,0.012538,79754.0,79753.0,0.1303887]
[1744089597626,0.012538,79754.0,79753.0,0.001]
[1744089597809,0.263318,79752.0,79748.0,0.4144]
[1744089598045,0.263318,79752.0,79749.0,0.1293887]
[1744089598506,0.263318,79752.0,79750.0,0.02347243]
[1744089598702,0.263318,79752.0,79750.0,0.15286113]
[1744089598908,0.263318,79752.0,79751.0,0.02347243]
[1744089599449,0.012538,79752.0,79751.0,0.02347243]
[1744089599853,0.250774,79753.0,79751.0,0.02347243]
[1744089600385,0.250774,79753.0,79752.0,0.02347243]
[1744089600557,0.2636312,79759.0,79752.0,0.16539913]
[1744089600773,0.0003362,79759.0,79755.0,0.012538]
[1744089601107,0.0003362,79759.0,79758.0,0.36707785]
[1744089601284,0.0003362,79759.0,79758.0,0.54296655]
[1744089601503,0.0003362,79759.0,79758.0,0.56643898]
[1744089601848,0.0013362,79759.0,79758.0,0.56643898]
[1744089602090,0.0013362,79759.0,79758.0,0.56685544]
[1744089602232,0.0003362,79759.0,79758.0,0.56685544]
[1744089602437,0.0003362,79759.0,79758.0,1.02925544]
[1744089602895,0.0003366,79784.0,79765.0,0.71231285]
[1744089603041,0.0003366,79784.0,79765.0,1.25610155]
[1744089603243,0.0003366,79784.0,79765.0,1.40354155]
[1744089603542,0.0003366,79784.0,79765.0,1.42701398]
[1744089604474,0.0003366,79784.0,79765.0,1.42901398]
[1744089604807,0.012534,79782.0,79765.0,1.42901398]
[1744089604952,0.012536,79770.0,79765.0,1.00376113]
[1744089605176,0.263263,79768.0,79765.0,0.90926113]
[1744089605384,0.250729,79768.0,79765.0,0.90926113]
[1744089605586,0.012535,79771.0,79765.0,0.90926113]
[1744089605785,0.0003362,79776.0,79765.0,0.93133788]
[1744089606129,0.0003362,79776.0,79765.0,0.94587873]
[1744089606334,0.0003362,79776.0,79765.0,0.99237873]
[1744089606827,0.0003362,79776.0,79765.0,1.04037873]
[1744089607649,0.0003362,79776.0,79775.0,0.60324]
[1744089607837,0.0003362,79776.0,79775.0,0.84166955]
[1744089608180,0.0003362,79776.0,79775.0,0.86514198]
[1744089608996,0.0013362,79776.0,79775.0,0.85860113]
[1744089609823,0.0013362,79776.0,79775.0,0.87314198]
[1744089610043,0.0023362,79776.0,79775.0,0.88214198]
[1744089610519,0.0013362,79776.0,79775.0,0.87314198]
[1744089610919,0.0013362,79776.0,79775.0,0.87414198]
[1744089611354,0.0023362,79776.0,79775.0,0.88314198]
[1744089611515,0.0023362,79776.0,79775.0,1.29754198]
[1744089611932,0.0003366,79784.0,79783.0,0.603212]
[1744089612110,0.0003366,79784.0,79783.0,1.25794155]
[1744089612552,0.0003366,79784.0,79783.0,1.28141398]
[1744089613312,0.00046298,79784.0,79783.0,1.28141398]
[1744089614082,0.00046298,79784.0,79783.0,1.28541398]
[1744089614396,0.00046298,79784.0,79783.0,1.29441398]
[1744089614558,0.00046298,79784.0,79783.0,1.29041398]
[1744089614952,0.00046298,79784.0,79783.0,1.29941398]
[1744089615680,0.0003366,79803.0,79785.0,0.0964]
[1744089615885,2e-07,79809.0,79808.0,0.01253]
[1744089616039,2e-07,79809.0,79808.0,0.9133649]
[1744089616251,4.772e-05,79809.0,79808.0,0.91085955]
[1744089616447,4.772e-05,79809.0,79808.0,0.8963187]
[1744089616721,4.772e-05,79809.0,79808.0,0.8837887]
[1744089617108,4.772e-05,79809.0,79808.0,0.8963187]
[1744089617758,4.772e-05,79809.0,79808.0,0.96690487]
[1744089617970,4.772e-05,79809.0,79808.0,0.98490487]
[1744089618965,0.0003362,79814.0,79813.0,0.66755485]
[1744089619168,0.0003362,79814.0,79813.0,0.820236]
[1744089620330,0.0003362,79814.0,79813.0,1.234636]
[1744089620722,0.0003362,79814.0,79813.0,1.231107]
[1744089621463,0.0003362,79814.0,79813.0,1.240107]
[1744089621692,0.0003362,79814.0,79813.0,1.252636]
[1744089623383,0.0003362,79814.0,79813.0,1.202736]
[1744089623669,0.0003362,79814.0,79813.0,1.17944355]
[1744089624011,0.0003362,79814.0,79813.0,1.1649027]
[1744089624643,0.0003362,79814.0,79813.0,0.9017887]
[1744089624847,0.0128652,79814.0,79813.0,0.5617887]
[1744089625059,0.0128652,79814.0,79813.0,0.4324]
[1744089625421,0.0613652,79814.0,79813.0,0.018]
[1744089626255,0.0613652,79814.0,79813.0,0.009]
[1744089626460,0.01253,79804.0,79796.0,0.26317]
[1744089626660,0.263114,79813.0,79795.0,0.34]
[1744089626661,0.0003362,79814.0,79810.0,0.250595]
[1744089626863,0.0003362,79814.0,79811.0,0.1293887]
[1744089627073,0.0003362,79814.0,79811.0,0.3799767]
[1744089627396,0.0013362,79814.0,79811.0,0.3799767]
[1744089627740,0.0003362,79814.0,79811.0,0.3799767]
[1744089627956,0.0013362,79814.0,79811.0,0.3799767]
[1744089628159,0.0023362,79814.0,79811.0,0.3799767]
[1744089628531,0.012529,79812.0,79811.0,0.1293887]
[1744089628747,0.012529,79812.0,79800.0,0.250625]
[1744089628748,0.01253,79808.0,79801.0,0.352531]
[1744089629054,0.01253,79808.0,79803.0,0.34]
[1744089629259,0.01253,79808.0,79804.0,0.1293887]
[1744089629563,0.250604,79807.0,79804.0,0.1527044]
[1744089629742,0.26314,79805.0,79804.0,0.1527044]
[1744089630520,0.26314,79805.0,79804.0,0.1453887]
[1744089630715,0.26314,79805.0,79804.0,0.1383887]
[1744089630916,0.26314,79805.0,79804.0,0.1293887]
[1744089631115,0.263147,79803.0,79802.0,0.4144]
[1744089631438,0.27485935,79803.0,79802.0,0.4144]
[1744089632214,0.01171235,79803.0,79802.0,0.5852287]
[1744089632455,0.250605,79807.0,79802.0,0.5852287]
[1744089632776,0.01253,79806.0,79803.0,0.1293887]
[1744089632930,0.25061,79805.0,79803.0,0.1293887]
[1744089633333,0.01159833,79804.0,79803.0,0.1293887]
[1744089633677,0.01159833,79804.0,79803.0,0.16538864]
[1744089634234,0.01159833,79804.0,79803.0,0.16838864]
[1744089634422,0.01159833,79804.0,79803.0,0.16938864]
[1744089634825,0.01159833,79804.0,79803.0,0.16838864]
[1744089635165,0.01159833,79804.0,79803.0,0.1323887]
[1744089635621,0.01159833,79804.0,79803.0,0.1419187]
[1744089635817,0.250578,79816.0,79807.0,0.250603]
[1744089636018,0.01159333,79813.0,79808.0,0.1293887]
[1744089636228,0.01159333,79813.0,79803.0,0.266147]
[1744089636229,0.25061,79806.0,79803.0,0.003]
[1744089636438,0.01160838,79805.0,79804.0,0.1293887]
[1744089636863,0.263135,79807.0,79804.0,0.1293887]
[1744089637090,0.01160705,79805.0,79804.0,0.1293887]
[1744089637375,0.01253,79806.0,79804.0,0.1293887]
[1744089637560,0.01160203,79805.0,79804.0,0.1293887]
[1744089637924,0.01160203,79805.0,79804.0,0.7666027]
[1744089638130,0.01160203,79805.0,79804.0,0.7791327]
[1744089638357,0.0003362,79814.0,79813.0,0.263114]
[1744089638576,0.0003362,79814.0,79813.0,0.3925027]
[1744089638751,0.0003362,79814.0,79813.0,0.41589916]
[1744089638950,0.0003362,79814.0,79813.0,0.75589916]
[1744089639486,0.0003362,79814.0,79813.0,0.7325027]
[1744089640735,0.0003362,79814.0,79813.0,0.7739096]
[1744089640933,0.0003362,79814.0,79813.0,1.1883096]
[1744089641139,0.0003362,79814.0,79813.0,1.20285045]
[1744089641772,0.0003362,79814.0,79813.0,1.21235432]
[1744089642185,0.0003362,79814.0,79813.0,1.18894742]
[1744089643032,0.0003362,79814.0,79813.0,1.21235006]
[1744089643253,0.0003362,79814.0,79813.0,1.25755006]
[1744089644832,0.0003362,79814.0,79813.0,1.23414742]
[1744089645916,0.0003362,79814.0,79813.0,0.83440657]
[1744089646162,0.0003362,79814.0,79813.0,0.8249027]
[1744089646375,0.0003362,79814.0,79813.0,0.9017887]
[1744089646843,0.01215513,79814.0,79813.0,0.9017887]
[1744089647071,0.0003362,79814.0,79813.0,0.9143177]
[1744089647534,0.0003362,79814.0,79813.0,1.1649027]
[1744089647757,0.0003362,79814.0,79813.0,0.9017887]
[1744089647976,0.0003362,79814.0,79813.0,1.1649027]